Workbook

Sheet Paskolos skaičiuotuvas
B2: KOLEGIJOS PASKOLA | G2: 50,000 Lt | L2: 2011-05-10
B3: SKAIČIUOTUVAS
B5: Rekomenduojama, kad jūsų bendra grąžinama studento paskolos suma neviršytų 8 % jūsų pirmojo metinio atlyginimo.
C7: Jūsų kombinuotas dabartinis mėnesinis mokėjimas yra: | F7: =KolegijosPaskolos[[#Totals],[Dabartinis mėnesinis mokėjimas]] -> 328.59 Lt | I7: Jūsų kombinuotas planinis mėnesinis mokėjimas yra: | M7: =KolegijosPaskolos[[#Totals],[Planinis mokėjimas]] -> 328.59 Lt
C8: Mėnesio pajamų procentas: | F8: =KolegijosPaskolos[[#Totals],[Dabartinis mėnesinis mokėjimas]]/NumatomasMėnesinisAtlyginimas -> 7.89% | I8: Mėnesio pajamų procentas: | M8: =KolegijosPaskolos[[#Totals],[Planinis mokėjimas]]/NumatomasMėnesinisAtlyginimas -> 7.89%
C11: BENDROJI PASKOLOS INFORMACIJA | G11: PASKOLOS GRĄŽINIMO DUOMENYS | J11: MOKĖJIMO INFORMACIJA
C12: Paskolos Nr. | D12: Skolintojas | E12: Paskolos suma | F12: Metinė palūkanų norma | G12: Pradžios data | H12: Trukmė (metais) | I12: Pabaigos data | J12: Dabartinis mėnesinis mokėjimas | K12: Bendros palūkanos | L12: Planinis mokėjimas | M12: Metinė įmoka
C13: 10998M88 | D13: 1 skolintojas | E13: 10,000.00 Lt | F13: 5.00% | G13: 2011-04-01 | H13: 10 | I13: =IF(AND(KolegijosPaskolos[[#This Row],[Pradžios data]]>0,KolegijosPaskolos[[#This Row],[Trukmė (metais)]]>0),EDATE(KolegijosPaskolos[[#This Row],[Pradžios data]],KolegijosPaskolos[[#This Row],[Trukmė (metais)]]*12),"") -> 2021-04-01 | J13: =IF(AND(PaskolosPradžiaLŠiandien,COUNT(KolegijosPaskolos[[#This Row],[Paskolos suma]:[Trukmė (metais)]])=4,KolegijosPaskolos[[#This Row],[Pradžios data]]<TODAY()),PMT(KolegijosPaskolos[[#This Row],[Metinė palūkanų norma]]/12,KolegijosPaskolos[[#This Row],[Trukmė (metais)]]*12,-KolegijosPaskolos[[#This Row],[Paskolos suma]],0,0),"") -> 106.07 Lt | K13: =IFERROR((KolegijosPaskolos[[#This Row],[Planinis mokėjimas]]*(KolegijosPaskolos[[#This Row],[Trukmė (metais)]]*12))-KolegijosPaskolos[[#This Row],[Paskolos suma]],"") -> 2,727.86 Lt | L13: =IF(COUNTA(KolegijosPaskolos[[#This Row],[Paskolos suma]:[Trukmė (metais)]])<>4,"",PMT(KolegijosPaskolos[[#This Row],[Metinė palūkanų norma]]/12,KolegijosPaskolos[[#This Row],[Trukmė (metais)]]*12,-KolegijosPaskolos[[#This Row],[Paskolos suma]],0,0)) -> 106.07 Lt | M13: =IFERROR(KolegijosPaskolos[[#This Row],[Planinis mokėjimas]]*12,"") -> 1,272.79 Lt
C14: 20987N87 | D14: 2 skolintojas | E14: 8,000.00 Lt | F14: 5.00% | G14: 2011-05-01 | H14: 10 | I14: =IF(AND(KolegijosPaskolos[[#This Row],[Pradžios data]]>0,KolegijosPaskolos[[#This Row],[Trukmė (metais)]]>0),EDATE(KolegijosPaskolos[[#This Row],[Pradžios data]],KolegijosPaskolos[[#This Row],[Trukmė (metais)]]*12),"") -> 2021-05-01 | J14: =IF(AND(PaskolosPradžiaLŠiandien,COUNT(KolegijosPaskolos[[#This Row],[Paskolos suma]:[Trukmė (metais)]])=4,KolegijosPaskolos[[#This Row],[Pradžios data]]<TODAY()),PMT(KolegijosPaskolos[[#This Row],[Metinė palūkanų norma]]/12,KolegijosPaskolos[[#This Row],[Trukmė (metais)]]*12,-KolegijosPaskolos[[#This Row],[Paskolos suma]],0,0),"") -> 84.85 Lt | K14: =IFERROR((KolegijosPaskolos[[#This Row],[Planinis mokėjimas]]*(KolegijosPaskolos[[#This Row],[Trukmė (metais)]]*12))-KolegijosPaskolos[[#This Row],[Paskolos suma]],"") -> 2,182.29 Lt | L14: =IF(COUNTA(KolegijosPaskolos[[#This Row],[Paskolos suma]:[Trukmė (metais)]])<>4,"",PMT(KolegijosPaskolos[[#This Row],[Metinė palūkanų norma]]/12,KolegijosPaskolos[[#This Row],[Trukmė (metais)]]*12,-KolegijosPaskolos[[#This Row],[Paskolos suma]],0,0)) -> 84.85 Lt | M14: =IFERROR(KolegijosPaskolos[[#This Row],[Planinis mokėjimas]]*12,"") -> 1,018.23 Lt
C15: 36785LM | D15: 3 skolintojas | E15: 6,000.00 Lt | F15: 4.50% | G15: 2012-03-01 | H15: 10 | I15: =IF(AND(KolegijosPaskolos[[#This Row],[Pradžios data]]>0,KolegijosPaskolos[[#This Row],[Trukmė (metais)]]>0),EDATE(KolegijosPaskolos[[#This Row],[Pradžios data]],KolegijosPaskolos[[#This Row],[Trukmė (metais)]]*12),"") -> 2022-03-01 | J15: =IF(AND(PaskolosPradžiaLŠiandien,COUNT(KolegijosPaskolos[[#This Row],[Paskolos suma]:[Trukmė (metais)]])=4,KolegijosPaskolos[[#This Row],[Pradžios data]]<TODAY()),PMT(KolegijosPaskolos[[#This Row],[Metinė palūkanų norma]]/12,KolegijosPaskolos[[#This Row],[Trukmė (metais)]]*12,-KolegijosPaskolos[[#This Row],[Paskolos suma]],0,0),"") -> 62.18 Lt | K15: =IFERROR((KolegijosPaskolos[[#This Row],[Planinis mokėjimas]]*(KolegijosPaskolos[[#This Row],[Trukmė (metais)]]*12))-KolegijosPaskolos[[#This Row],[Paskolos suma]],"") -> 1,461.97 Lt | L15: =IF(COUNTA(KolegijosPaskolos[[#This Row],[Paskolos suma]:[Trukmė (metais)]])<>4,"",PMT(KolegijosPaskolos[[#This Row],[Metinė palūkanų norma]]/12,KolegijosPaskolos[[#This Row],[Trukmė (metais)]]*12,-KolegijosPaskolos[[#This Row],[Paskolos suma]],0,0)) -> 62.18 Lt | M15: =IFERROR(KolegijosPaskolos[[#This Row],[Planinis mokėjimas]]*12,"") -> 746.20 Lt
C16: 765R43 | D16: 4 skolintojas | E16: 4,000.00 Lt | F16: 5.00% | G16: 2012-05-01 | H16: 5 | I16: =IF(AND(KolegijosPaskolos[[#This Row],[Pradžios data]]>0,KolegijosPaskolos[[#This Row],[Trukmė (metais)]]>0),EDATE(KolegijosPaskolos[[#This Row],[Pradžios data]],KolegijosPaskolos[[#This Row],[Trukmė (metais)]]*12),"") -> 2017-05-01 | J16: =IF(AND(PaskolosPradžiaLŠiandien,COUNT(KolegijosPaskolos[[#This Row],[Paskolos suma]:[Trukmė (metais)]])=4,KolegijosPaskolos[[#This Row],[Pradžios data]]<TODAY()),PMT(KolegijosPaskolos[[#This Row],[Metinė palūkanų norma]]/12,KolegijosPaskolos[[#This Row],[Trukmė (metais)]]*12,-KolegijosPaskolos[[#This Row],[Paskolos suma]],0,0),"") -> 75.48 Lt | K16: =IFERROR((KolegijosPaskolos[[#This Row],[Planinis mokėjimas]]*(KolegijosPaskolos[[#This Row],[Trukmė (metais)]]*12))-KolegijosPaskolos[[#This Row],[Paskolos suma]],"") -> 529.10 Lt | L16: =IF(COUNTA(KolegijosPaskolos[[#This Row],[Paskolos suma]:[Trukmė (metais)]])<>4,"",PMT(KolegijosPaskolos[[#This Row],[Metinė palūkanų norma]]/12,KolegijosPaskolos[[#This Row],[Trukmė (metais)]]*12,-KolegijosPaskolos[[#This Row],[Paskolos suma]],0,0)) -> 75.48 Lt | M16: =IFERROR(KolegijosPaskolos[[#This Row],[Planinis mokėjimas]]*12,"") -> 905.82 Lt
C17: Sumos | E17: =SUBTOTAL(109,KolegijosPaskolos[Paskolos suma]) -> 28,000.00 Lt | J17: =SUBTOTAL(109,KolegijosPaskolos[Dabartinis mėnesinis mokėjimas]) -> 328.59 Lt | K17: =SUBTOTAL(109,KolegijosPaskolos[Bendros palūkanos]) -> 6,901.21 Lt | L17: =SUBTOTAL(109,KolegijosPaskolos[Planinis mokėjimas]) -> 328.59 Lt | M17: =SUBTOTAL(109,KolegijosPaskolos[Metinė įmoka]) -> 3,943.03 Lt
C18: Vidurkiai | E18: =AVERAGE(KolegijosPaskolos[Paskolos suma]) -> 7,000.00 Lt | F18: =AVERAGE(KolegijosPaskolos[Metinė palūkanų norma]) -> 4.88% | K18: =AVERAGE(KolegijosPaskolos[Bendros palūkanos]) -> 1,725.30 Lt | M18: =AVERAGE(KolegijosPaskolos[Metinė įmoka]) -> 985.76 Lt
K20: Bendras konsoliduotas paskolos grąžinimas: | M20: =KolegijosPaskolos[[#Totals],[Paskolos suma]]+KolegijosPaskolos[[#Totals],[Bendros palūkanos]] -> 34,901.21 Lt
K22: Numatomos mėnesio pajamos po baigimo: | M22: =(NumatomasMetinisAtlyginimas/12) -> 4,166.67 Lt
